[Event "FIDE World School-ch O-9 2025"]
[Site "Vrnjacka Banja"]
[Date "2025.03.28"]
[Round "9.1"]
[White "Batbileg, Boldbaatar"]
[Black "Nematillakhonov, Nurmuhammad"]
[Result "0-1"]
[Annotator "NA RC"]
[ECO "B32"]
[WhiteElo "1637"]
[BlackElo "1767"]
[PlyCount "85"]
[EventDate "2025.03.19"]
[EventType "swiss"]
[EventCountry "SRB"]
[SourceTitle "playchess.com"]
[Source "ChessBase"]
[SourceQuality "1"]
[TimeControl "5400+30"]

1. Nf3 {[%emt 0:00:38]} c5 {[%emt 0:02:35]} 2. e4 {[%emt 0:08:25]} Nc6 {[%emt 0:07:24]} 3. d4 {[%emt 0:00:50]} cxd4 {[%emt 0:00:13]} 4. Nxd4 {[%emt 0:00:13]} e5 {[%emt 0:00:12]} 5. Nb5 {[%emt 0:00:14]} d6 {[%emt 0:00:19]} 6. N1c3 {[%emt 0:00:50]} a6 {[%emt 0:00:21]} 7. Na3 {[%emt 0:00:15]} Be7 {[%emt 0:00:50]} 8. Nd5 {[%emt 0:06:07]} Nf6 {[%emt 0:00:12]} 9. Nxf6+ {[%emt 0:00:30]} Bxf6 {[%emt 0:00:07]} 10. Nc4 {[%emt 0:00:12]} O-O {[%emt 0:00:20]} 11. Be3 {[%emt 0:01:08]} b5 {[%emt 0:03:21]} 12. Nb6 {[%emt 0:07:07]} Rb8 {[%emt 0:01:29]} 13. Nd5 {[%emt 0:00:16]} Bg5 {[%emt 0:00:11]} 14. Be2 {[%emt 0:01:00]} Be6 {[%emt 0:01:42]} 15. O-O {[%emt 0:00:45]} Bxd5 {[%emt 0:00:57]} 16. Bxg5 {[%emt 0:01:21]} Qxg5 {[%emt 0:00:12]} 17. exd5 {[%emt 0:06:09]} Ne7 {[%emt 0:00:01]} 18. b3 {[%emt 0:01:42]} e4 {[%emt 0:01:58]} 19. c4 {[%emt 0:02:50]} f5 {[%emt 0:00:03]} 20. f3 {[%emt 0:02:14]} Ng6 {[%emt 0:02:19]} 21. Kh1 {[%emt 0:12:22]} e3 {[%emt 0:00:48]} 22. Rc1 {[%emt 0:09:10]} Rf6 {[%emt 0:01:56]} 23. g3 {[%emt 0:06:22]} f4 {[%emt 0:00:23]} 24. g4 {[%emt 0:05:16]} Ne5 {[%emt 0:03:14]} 25. Qe1 {[%emt 0:06:50]} Rh6 {[%emt 0:01:47]} 26. cxb5 {[%emt 0:06:10]} axb5 {[%emt 0:00:55]} 27. Rg1 {[%emt 0:00:35]} b4 {[%emt 0:01:48]} 28. Rc7 {[%emt 0:03:10]} Rh3 {[%emt 0:01:51]} 29. Qf1 {[%emt 0:01:13]} Qh4 {[%emt 0:03:10]} 30. Rg2 {[%emt 0:03:31]} Rf8 {[%emt 0:01:15]} 31. Rc2 {[%emt 0:06:06]} Nxg4 {[%emt 0:01:43]} 32. fxg4 {[%emt 0:01:22]} f3 {[%emt 0:00:08]} 33. Bxf3 {[%emt 0:01:21]} Rhxf3 {[%emt 0:00:10]} 34. Qd3 {[%emt 0:00:45]} Rf1+ {[%emt 0:06:19]} 35. Rg1 {[%emt 0:00:12]} R8f2 {[%emt 0:00:30]} 36. Rc8+ {[%emt 0:00:15]} Rf8 {[%emt 0:07:08]} 37. Rxf8+ {[%emt 0:00:49]} Rxf8 {[%emt 0:00:17]} 38. Qxe3 {[%emt 0:00:08]} h6 {[%emt 0:04:58]} 39. Qe6+ {[%emt 0:01:00]} Kh7 {[%emt 0:00:08]} 40. Qxd6 {[%emt 0:00:17]} Qf2 {[%emt 0:00:51]} 41. Qg3 {[%emt 0:00:26]} Qd2 {[%emt 0:01:05]} 42. Qg2 {[%emt 0:00:43]} Qd4 {[%emt 0:00:46]} 43. Rf1 {[%emt 0:01:11]} 0-1

[Event "FIDE World School-ch O-9 2025"]
[Site "Vrnjacka Banja"]
[Date "2025.03.28"]
[Round "9.2"]
[White "Bondarev, Fedor"]
[Black "Wee, Yu Heng Lucas John"]
[Result "1-0"]
[Annotator "NA RC"]
[ECO "B22"]
[WhiteElo "1598"]
[BlackElo "1680"]
[PlyCount "95"]
[EventDate "2025.03.19"]
[EventType "swiss"]
[EventCountry "SRB"]
[SourceTitle "playchess.com"]
[Source "ChessBase"]
[SourceQuality "1"]
[TimeControl "5400+30"]

1. e4 {[%emt 0:00:21]} c5 {[%emt 0:00:12]} 2. Nf3 {[%emt 0:00:09]} Nc6 {[%emt 0:00:06]} 3. Bb5 {[%emt 0:00:11]} e5 {[%emt 0:01:13]} 4. c3 {[%emt 0:00:19]} Qc7 {[%emt 0:07:54]} 5. O-O {[%emt 0:00:13]} Bd6 {[%emt 0:01:25]} 6. h3 {[%emt 0:01:26]} Nf6 {[%emt 0:02:35]} 7. d4 {[%emt 0:06:06]} cxd4 {[%emt 0:05:34]} 8. cxd4 {[%emt 0:00:18]} a6 {[%emt 0:00:21]} 9. Bxc6 {[%emt 0:01:12]} dxc6 {[%emt 0:00:37]} 10. dxe5 {[%emt 0:01:53]} Bxe5 {[%emt 0:00:16]} 11. Nxe5 {[%emt 0:01:07]} Qxe5 {[%emt 0:00:39]} 12. Nc3 {[%emt 0:00:09]} O-O {[%emt 0:04:36]} 13. f4 {[%emt 0:02:17]} Qc5+ {[%emt 0:00:57]} 14. Kh2 {[%emt 0:00:03]} Be6 {[%emt 0:04:51]} 15. e5 {[%emt 0:04:34]} Rad8 {[%emt 0:07:40]} 16. Qf3 {[%emt 0:02:32]} Bd5 {[%emt 0:10:13]} 17. Qe3 {[%emt 0:10:23]} Qxe3 {[%emt 0:11:42]} 18. Bxe3 {[%emt 0:00:07]} Ne4 {[%emt 0:03:03]} 19. Bb6 {[%emt 1:06:40]} Rd7 {[%emt 0:07:15]} 20. Rad1 {[%emt 0:00:00]} Nxc3 {[%emt 0:07:21]} 21. bxc3 {[%emt 0:00:00]} Ra8 {[%emt 0:06:28]} 22. Rf2 {[%emt 0:00:00]} Kf8 {[%emt 0:01:35]} 23. Rfd2 {[%emt 0:00:00]} Ke8 {[%emt 0:02:21]} 24. f5 {[%emt 0:00:00]} Re7 {[%emt 0:01:01]} 25. c4 {[%emt 0:00:00]} Rxe5 {[%emt 0:01:14]} 26. cxd5 {[%emt 0:00:00]} Rxf5 {[%emt 0:00:10]} 27. Re2+ {[%emt 0:00:00]} Kd7 {[%emt 0:02:04]} 28. d6 {[%emt 0:00:00]} Rd5 {[%emt 0:00:40]} 29. Rxd5 {[%emt 0:00:00]} cxd5 {[%emt 0:00:04]} 30. Bc7 {[%emt 0:00:00]} Rf8 {[%emt 0:04:48]} 31. Re7+ {[%emt 0:00:00]} Kc6 {[%emt 0:00:10]} 32. d7 {[%emt 0:00:00]} Kxc7 {[%emt 0:00:46]} 33. Re8 {[%emt 0:00:00]} Kxd7 {[%emt 0:00:35]} 34. Rxf8 {[%emt 0:00:00]} d4 {[%emt 0:00:17]} 35. Kg1 {[%emt 0:00:00]} a5 {[%emt 0:00:26]} 36. Rxf7+ {[%emt 0:00:00]} Kc6 {[%emt 0:00:05]} 37. Kf1 {[%emt 0:00:00]} b5 {[%emt 0:00:12]} 38. Ke2 {[%emt 0:00:00]} Kc5 {[%emt 0:00:03]} 39. Rxg7 {[%emt 0:00:00]} Kb4 {[%emt 0:00:09]} 40. Rxh7 {[%emt 0:00:00]} Ka3 {[%emt 0:00:05]} 41. Rh5 {[%emt 0:00:00]} Kxa2 {[%emt 0:00:28]} 42. Rxb5 {[%emt 0:00:00]} a4 {[%emt 0:00:04]} 43. Rb4 {[%emt 0:00:00]} d3+ {[%emt 0:00:11]} 44. Kxd3 {[%emt 0:00:00]} a3 {[%emt 0:00:03]} 45. Kc2 {[%emt 0:00:00]} Ka1 {[%emt 0:00:22]} 46. Rb1+ {[%emt 0:00:00]} Ka2 {[%emt 0:00:06]} 47. Rb3 {[%emt 0:00:00]} Ka1 {[%emt 0:00:10]} 48. Rxa3# {[%emt 0:00:00]} 1-0

[Event "FIDE World School-ch O-9 2025"]
[Site "Vrnjacka Banja"]
[Date "2025.03.28"]
[Round "9.3"]
[White "Sultankhan, Nurislam"]
[Black "Redkin, Dmitriy S"]
[Result "1-0"]
[Annotator "NA RC"]
[ECO "A13"]
[WhiteElo "1649"]
[BlackElo "2042"]
[PlyCount "111"]
[EventDate "2025.03.19"]
[EventType "swiss"]
[EventCountry "SRB"]
[SourceTitle "playchess.com"]
[Source "ChessBase"]
[SourceQuality "1"]
[TimeControl "5400+30"]

1. Nf3 {[%emt 0:00:10]} d5 {[%emt 0:01:31]} 2. b3 {[%emt 0:01:13]} Nf6 {[%emt 0:00:21]} 3. Bb2 {[%emt 0:01:05]} e6 {[%emt 0:02:25]} 4. e3 {[%emt 0:01:21]} Be7 {[%emt 0:01:33]} 5. Be2 {[%emt 0:01:11]} c5 {[%emt 0:00:32]} 6. O-O {[%emt 0:01:09]} O-O {[%emt 0:00:39]} 7. c4 {[%emt 0:01:56]} b6 {[%emt 0:01:20]} 8. d4 {[%emt 0:00:53]} Bb7 {[%emt 0:01:43]} 9. cxd5 {[%emt 0:01:35]} exd5 {[%emt 0:02:50]} 10. dxc5 {[%emt 0:00:47]} bxc5 {[%emt 0:01:12]} 11. Nc3 {[%emt 0:02:27]} Nc6 {[%emt 0:00:43]} 12. Rc1 {[%emt 0:05:08]} Rc8 {[%emt 0:03:01]} 13. Na4 {[%emt 0:04:48]} Nb4 {[%emt 0:14:56]} 14. a3 {[%emt 0:02:41]} Na6 $14 {[%emt 0:02:39]} 15. Re1 {[%emt 0:01:18]} Qd6 {[%emt 0:06:24]} 16. Bd3 {[%emt 0:02:41]} g6 {[%emt 0:03:05]} 17. Qe2 {[%emt 0:03:25]} Rfd8 {[%emt 0:12:33]} 18. Red1 {[%emt 0:02:53]} h6 {[%emt 0:03:59]} 19. h3 {[%emt 0:02:09]} Qe6 {[%emt 0:01:20]} 20. Ne5 {[%emt 0:28:27]} Nd7 {[%emt 0:02:55]} 21. Nxd7 {[%emt 0:00:58]} Rxd7 {[%emt 0:00:20]} 22. Bb5 {[%emt 0:04:59]} Rdc7 {[%emt 0:05:15]} 23. Qd2 {[%emt 0:06:13]} Bf6 {[%emt 0:03:41]} 24. Bxf6 {[%emt 0:03:32]} Qxf6 {[%emt 0:00:13]} 25. Qa5 {[%emt 0:02:52]} c4 {[%emt 0:03:03]} 26. bxc4 {[%emt 0:02:55]} dxc4 {[%emt 0:02:31]} 27. Bd7 {[%emt 0:02:53]} Rxd7 {[%emt 0:01:09]} 28. Rxd7 {[%emt 0:00:14]} Qc6 {[%emt 0:00:35]} 29. Rxb7 {[%emt 0:01:27]} Qxb7 {[%emt 0:00:15]} 30. Nc3 {[%emt 0:00:49]} Nc5 {[%emt 0:02:01]} 31. Rd1 {[%emt 0:00:36]} Nd3 {[%emt 0:00:52]} 32. Rb1 {[%emt 0:00:30]} Qc7 {[%emt 0:02:53]} 33. Qa6 {[%emt 0:02:45]} Qc6 {[%emt 0:01:23]} 34. Qxa7 {[%emt 0:01:39]} Qf6 {[%emt 0:04:17]} 35. Ne4 {[%emt 0:00:40]} Qe5 {[%emt 0:04:04]} 36. Qd7 {[%emt 0:01:28]} Rf8 {[%emt 0:03:31]} 37. Qc6 {[%emt 0:00:58]} Qe6 {[%emt 0:01:41]} 38. Qb7 {[%emt 0:01:55]} Rc8 {[%emt 0:00:45]} 39. Rb6 {[%emt 0:01:00]} Nc5 {[%emt 0:03:19]} 40. Nxc5 {[%emt 0:00:16]} Qf5 {[%emt 0:00:43]} 41. Nd7 {[%emt 0:00:14]} Rd8 {[%emt 0:01:18]} 42. Rd6 {[%emt 0:00:21]} c3 {[%emt 0:01:27]} 43. Nf6+ {[%emt 0:00:10]} Kg7 {[%emt 0:00:16]} 44. Rxd8 {[%emt 0:00:11]} c2 {[%emt 0:00:29]} 45. Ne8+ {[%emt 0:00:06]} Kh7 {[%emt 0:00:20]} 46. Qc8 {[%emt 0:00:35]} Qa5 {[%emt 0:00:22]} 47. Nf6+ {[%emt 0:00:32]} Kg7 {[%emt 0:00:16]} 48. Rg8+ {[%emt 0:00:07]} Kxf6 {[%emt 0:00:11]} 49. Qxc2 {[%emt 0:00:14]} Qxa3 {[%emt 0:00:15]} 50. Qc6+ {[%emt 0:00:13]} Kg5 {[%emt 0:00:31]} 51. Rd8 {[%emt 0:00:47]} Qa1+ {[%emt 0:00:29]} 52. Kh2 {[%emt 0:00:02]} Qb2 {[%emt 0:00:19]} 53. Rd5+ {[%emt 0:00:19]} f5 {[%emt 0:00:13]} 54. f4+ {[%emt 0:00:18]} Kh4 {[%emt 0:00:41]} 55. Qxg6 {[%emt 0:00:23]} Qf2 {[%emt 0:00:20]} 56. Qxh6# {[%emt 0:00:49]} 1-0

[Event "FIDE World School-ch O-9 2025"]
[Site "Vrnjacka Banja"]
[Date "2025.03.28"]
[Round "9.4"]
[White "Khabul, Chinzorig"]
[Black "Ulan, Rizat"]
[Result "0-1"]
[Annotator "NA RC"]
[ECO "A48"]
[WhiteElo "1513"]
[BlackElo "1769"]
[PlyCount "102"]
[EventDate "2025.03.19"]
[EventType "swiss"]
[EventCountry "SRB"]
[SourceTitle "playchess.com"]
[Source "ChessBase"]
[SourceQuality "1"]
[TimeControl "5400+30"]

1. d4 {[%emt 0:00:56]} Nf6 {[%emt 0:00:20]} 2. Bf4 {[%emt 0:00:16]} g6 {[%emt 0:00:13]} 3. Nf3 {[%emt 0:01:05]} Bg7 {[%emt 0:00:11]} 4. h3 {[%emt 0:00:24]} d6 {[%emt 0:00:09]} 5. e3 {[%emt 0:01:36]} O-O {[%emt 0:00:32]} 6. Be2 {[%emt 0:01:28]} Nbd7 {[%emt 0:00:27]} 7. O-O {[%emt 0:02:44]} b6 {[%emt 0:00:07]} 8. c3 {[%emt 0:01:45]} Bb7 {[%emt 0:00:11]} 9. a4 {[%emt 0:02:02]} a5 {[%emt 0:02:21]} 10. Na3 {[%emt 0:03:20]} Ne4 {[%emt 0:04:47]} 11. Nc2 {[%emt 0:02:14]} e6 {[%emt 0:01:45]} 12. Nce1 {[%emt 0:01:07]} Qe7 {[%emt 0:01:05]} 13. Nd3 {[%emt 0:00:34]} f5 {[%emt 0:00:30]} 14. Nd2 {[%emt 0:02:45]} Nxd2 {[%emt 0:04:42]} 15. Qxd2 {[%emt 0:00:12]} Rad8 {[%emt 0:00:10]} 16. f3 {[%emt 0:01:52]} e5 {[%emt 0:02:26]} 17. Bh2 {[%emt 0:01:35]} e4 {[%emt 0:06:08]} 18. fxe4 {[%emt 0:01:54]} Bxe4 {[%emt 0:00:18]} 19. Bf3 {[%emt 0:01:13]} Nf6 {[%emt 0:00:55]} 20. Rae1 {[%emt 0:01:40]} Rde8 {[%emt 0:01:25]} 21. Kh1 {[%emt 0:09:18]} Qe6 {[%emt 0:08:37]} 22. Nf4 {[%emt 0:01:02]} Qc4 {[%emt 0:01:13]} 23. Bd1 {[%emt 0:02:32]} Bc6 {[%emt 0:03:53]} 24. b3 {[%emt 0:01:00]} Ne4 {[%emt 0:02:39]} 25. Qa2 {[%emt 0:58:26]} Qxc3 {[%emt 0:04:30]} 26. b4+ {[%emt 0:00:00]} Kh8 {[%emt 0:01:01]} 27. b5 {[%emt 0:00:00]} Bb7 {[%emt 0:04:49]} 28. Ne6 {[%emt 0:00:00]} Nf2+ {[%emt 0:00:27]} 29. Kg1 {[%emt 0:00:00]} Nxd1 {[%emt 0:00:19]} 30. Nxg7 {[%emt 0:00:00]} Kxg7 {[%emt 0:00:30]} 31. Rxd1 {[%emt 0:00:00]} Qxe3+ {[%emt 0:00:19]} 32. Rf2 {[%emt 0:03:30]} Re4 {[%emt 0:03:47]} 33. Qc2 {[%emt 0:00:00]} Rf7 {[%emt 0:00:09]} 34. Qa2 {[%emt 0:00:00]} Rfe7 {[%emt 0:00:38]} 35. Qb2 {[%emt 0:00:00]} Bd5 {[%emt 0:01:53]} 36. Rdf1 {[%emt 0:00:00]} Qxd4 {[%emt 0:02:21]} 37. Qc1 {[%emt 0:00:00]} Bc4 {[%emt 0:01:27]} 38. Rd1 {[%emt 0:00:00]} Qxd1+ {[%emt 0:00:06]} 39. Qxd1 {[%emt 0:00:00]} Re1+ {[%emt 0:00:04]} 40. Rf1 {[%emt 0:00:00]} Rxf1+ {[%emt 0:00:05]} 41. Qxf1 {[%emt 0:04:30]} Bxf1 {[%emt 0:00:01]} 42. Kxf1 {[%emt 0:00:00]} Re4 {[%emt 0:00:01]} 43. Kf2 {[%emt 0:00:00]} Rxa4 {[%emt 0:00:06]} 44. Bg3 {[%emt 0:00:00]} Re4 {[%emt 0:00:04]} 45. Kf3 {[%emt 0:00:00]} a4 {[%emt 0:00:04]} 46. Bf2 {[%emt 0:00:00]} a3 {[%emt 0:00:03]} 47. g4 {[%emt 0:00:00]} a2 {[%emt 0:00:03]} 48. gxf5 {[%emt 0:00:00]} gxf5 {[%emt 0:00:05]} 49. h4 {[%emt 0:00:00]} a1=Q {[%emt 0:47:04]} 50. h5 {[%emt 0:00:00]} Qh1+ {[%emt 0:00:00]} 51. Kg3 {[%emt 0:00:00]} Rg4# {[%emt 0:00:00]} 0-1

[Event "FIDE World School-ch O-9 2025"]
[Site "Vrnjacka Banja"]
[Date "2025.03.28"]
[Round "9.5"]
[White "Agar, Garig"]
[Black "Jamiyanoidovjamts, Tegshtur"]
[Result "1/2-1/2"]
[Annotator "NA RC"]
[ECO "E06"]
[WhiteElo "1620"]
[BlackElo "1489"]
[PlyCount "187"]
[EventDate "2025.03.19"]
[EventType "swiss"]
[EventCountry "SRB"]
[SourceTitle "playchess.com"]
[Source "ChessBase"]
[SourceQuality "1"]
[TimeControl "5400+30"]

1. Nf3 {[%emt 0:00:02]} Nf6 {[%emt 0:00:25]} 2. g3 {[%emt 0:00:54]} e6 {[%emt 0:00:45]} 3. Bg2 {[%emt 0:00:32]} d5 {[%emt 0:00:55]} 4. c4 {[%emt 0:00:32]} b6 {[%emt 0:03:03]} 5. O-O {[%emt 0:00:51]} Bb7 {[%emt 0:00:10]} 6. d4 {[%emt 0:02:55]} Be7 {[%emt 0:00:23]} 7. Ne5 {[%emt 0:02:40]} O-O {[%emt 0:02:11]} 8. Nd2 {[%emt 0:00:40]} Nc6 {[%emt 0:02:26]} 9. cxd5 {[%emt 0:02:34]} Nxd5 {[%emt 0:02:18]} 10. Ndf3 {[%emt 0:01:07]} Bf6 {[%emt 0:13:23]} 11. Nxc6 {[%emt 0:04:45]} Bxc6 {[%emt 0:00:15]} 12. e4 {[%emt 0:00:14]} Nb4 {[%emt 0:00:35]} 13. a3 {[%emt 0:00:19]} Na6 {[%emt 0:00:45]} 14. Qe2 {[%emt 0:00:12]} Qd7 {[%emt 0:03:26]} 15. Rd1 {[%emt 0:04:06]} Bb5 {[%emt 0:00:36]} 16. Qc2 {[%emt 0:02:08]} Rad8 {[%emt 0:01:20]} 17. e5 {[%emt 0:15:47]} Be7 {[%emt 0:00:27]} 18. Bd2 {[%emt 0:00:23]} c5 {[%emt 0:01:13]} 19. a4 {[%emt 0:06:44]} Be2 {[%emt 0:04:35]} 20. Re1 {[%emt 0:04:28]} Bxf3 {[%emt 0:00:25]} 21. Bxf3 {[%emt 0:00:13]} cxd4 {[%emt 0:01:53]} 22. Qc4 {[%emt 0:01:48]} Nc5 {[%emt 0:06:01]} 23. b4 {[%emt 0:08:40]} Nb7 {[%emt 0:54:30]} 24. Qa6 {[%emt 0:01:03]} Rb8 {[%emt 0:00:00]} 25. Qxa7 {[%emt 0:00:20]} Nc5 {[%emt 0:00:00]} 26. Qxd7 {[%emt 0:39:33]} Nxd7 {[%emt 0:01:30]} 27. Rac1 {[%emt 0:00:00]} Rfc8 {[%emt 0:00:00]} 28. Bc6 {[%emt 0:00:00]} Rc7 {[%emt 0:00:00]} 29. f4 {[%emt 0:00:00]} g6 {[%emt 0:00:00]} 30. Red1 {[%emt 0:00:00]} Kg7 {[%emt 0:00:00]} 31. Bb5 {[%emt 0:00:00]} Rbb7 {[%emt 0:00:00]} 32. Be1 {[%emt 0:00:00]} Rxc1 {[%emt 0:00:00]} 33. Rxc1 {[%emt 0:00:00]} f6 {[%emt 0:00:00]} 34. Rc6 {[%emt 0:00:00]} fxe5 {[%emt 0:00:00]} 35. Rxe6 {[%emt 0:00:00]} Kf7 {[%emt 0:00:00]} 36. Bc4 {[%emt 0:00:00]} Kf8 {[%emt 0:00:00]} 37. fxe5 {[%emt 0:00:00]} Bg5 {[%emt 0:00:00]} 38. Kf1 {[%emt 0:00:00]} Rc7 {[%emt 0:00:00]} 39. Bd3 {[%emt 0:00:00]} Kf7 {[%emt 0:00:00]} 40. Rd6 {[%emt 0:00:00]} Nxe5 {[%emt 0:00:00]} 41. Rxd4 {[%emt 0:00:00]} Nf3 {[%emt 0:00:00]} 42. Rc4 {[%emt 0:02:27]} Rxc4 {[%emt 0:00:00]} 43. Bxc4+ {[%emt 0:00:26]} Ke7 {[%emt 0:00:00]} 44. Bc3 {[%emt 0:01:38]} Nd2+ {[%emt 0:00:00]} 45. Bxd2 {[%emt 0:00:31]} Bxd2 {[%emt 0:00:00]} 46. b5 {[%emt 0:00:37]} Kf6 {[%emt 0:00:00]} 47. Ke2 {[%emt 0:00:19]} Bb4 {[%emt 0:00:00]} 48. Kd3 {[%emt 0:01:24]} Kg5 {[%emt 0:00:00]} 49. Be6 {[%emt 0:00:15]} h6 {[%emt 0:00:00]} 50. Ke4 {[%emt 0:00:23]} Kf6 {[%emt 0:00:00]} 51. Bc8 {[%emt 0:00:32]} Be1 {[%emt 0:00:00]} 52. g4 {[%emt 0:00:27]} g5 {[%emt 0:00:00]} 53. Bd7 {[%emt 0:00:39]} Bd2 {[%emt 0:00:00]} 54. Bc8 {[%emt 0:00:39]} Bc3 {[%emt 0:00:00]} 55. Kd5 {[%emt 0:00:33]} Bb4 {[%emt 0:00:00]} 56. Bd7 {[%emt 0:00:27]} Bc3 {[%emt 0:00:00]} 57. Kc6 {[%emt 0:00:20]} Ba5 {[%emt 0:00:00]} 58. Kd5 {[%emt 0:00:34]} Be1 {[%emt 0:00:00]} 59. Bf5 {[%emt 0:00:22]} Bb4 {[%emt 0:00:00]} 60. Kc6 {[%emt 0:00:24]} Ba5 {[%emt 0:00:00]} 61. Kd6 {[%emt 0:00:44]} Bb4+ {[%emt 0:00:00]} 62. Kc6 {[%emt 0:00:04]} Ba5 {[%emt 0:00:00]} 63. Kd5 {[%emt 0:00:45]} Bb4 {[%emt 0:00:00]} 64. Be4 {[%emt 0:00:11]} Bc3 {[%emt 0:00:00]} 65. Bg2 {[%emt 0:00:19]} Bb4 {[%emt 0:00:00]} 66. h3 {[%emt 0:00:35]} Bc3 {[%emt 0:00:00]} 67. Bf1 {[%emt 0:00:42]} Bb4 {[%emt 0:00:00]} 68. Kc6 {[%emt 0:00:21]} Ba5 {[%emt 0:00:00]} 69. Kd7 {[%emt 0:00:36]} Bc3 {[%emt 0:00:00]} 70. Ke8 {[%emt 0:00:32]} Kg7 {[%emt 0:00:00]} 71. Ke7 {[%emt 0:00:07]} Bb4+ {[%emt 0:00:00]} 72. Ke6 {[%emt 0:00:05]} Bc3 {[%emt 0:00:00]} 73. Bg2 {[%emt 0:00:25]} Bb4 {[%emt 0:23:30]} 74. Be4 {[%emt 0:00:08]} Bc3 {[%emt 0:00:00]} 75. Ke7 {[%emt 0:00:13]} Bb4+ {[%emt 0:00:00]} 76. Ke6 {[%emt 0:00:15]} Bc3 {[%emt 0:00:00]} 77. Bd3 {[%emt 0:00:08]} Be1 {[%emt 0:00:00]} 78. Bf1 {[%emt 0:00:14]} Bb4 {[%emt 0:00:00]} 79. Bg2 {[%emt 0:00:08]} Ba5 {[%emt 0:00:00]} 80. Bf1 {[%emt 0:00:57]} Bb4 {[%emt 0:00:00]} 81. Bc4 {[%emt 0:00:14]} Ba5 {[%emt 0:00:00]} 82. Kf5 {[%emt 0:00:17]} Bd2 {[%emt 0:00:00]} 83. Bf1 {[%emt 0:00:46]} Bb4 {[%emt 0:00:00]} 84. h4 {[%emt 0:00:29]} gxh4 {[%emt 0:00:00]} 85. g5 {[%emt 0:00:09]} hxg5 {[%emt 0:00:00]} 86. Kxg5 {[%emt 0:00:06]} Be1 {[%emt 0:00:00]} 87. Bh3 {[%emt 0:00:09]} Kf7 {[%emt 0:00:00]} 88. Kf5 {[%emt 0:00:10]} Ke7 {[%emt 0:00:00]} 89. Ke5 {[%emt 0:00:59]} Bc3+ {[%emt 0:00:00]} 90. Kf4 {[%emt 0:00:17]} Kd6 {[%emt 0:00:00]} 91. Bg4 {[%emt 0:00:11]} Kc5 {[%emt 0:00:00]} 92. Bd1 {[%emt 0:00:21]} Kb4 {[%emt 0:00:00]} 93. Kg4 {[%emt 0:00:09]} Be1 {[%emt 0:00:00]} 94. Kh3 {[%emt 0:00:09]} 1/2-1/2